[Event "Najdorf Memorial-B 2022"]
[Site "Warsaw"]
[Date "2022.07.09"]
[Round "1.11"]
[White "Rozycki, Dariusz"]
[Black "Gajewski, Dariusz"]
[Result "0-1"]
[ECO "B02"]
[WhiteElo "1276"]
[BlackElo "1697"]
[Annotator "NA RC"]
[PlyCount "58"]
[EventDate "2022.07.09"]
[EventType "swiss"]
[EventCountry "POL"]
[SourceTitle "playchess.com"]
[Source "ChessBase"]
[SourceQuality "1"]
[TimeControl "40/5400+30:1800+30"]

1. e4 {[%emt 0:00:02]} Nf6 {[%emt 0:00:27]} 2. e5 {[%emt 0:00:19]} Nd5 {[%emt 0:00:06]} 3. Nc3 {[%emt 0:00:07]} e6 {[%emt 0:00:13]} 4. Nxd5 {[%emt 0:00:08]} exd5 {[%emt 0:00:01]} 5. Nf3 {[%emt 0:00:23]} d6 {[%emt 0:00:09]} 6. d4 {[%emt 0:00:44]} Be7 {[%emt 0:00:31]} 7. Bd3 {[%emt 0:00:55]} Bg4 {[%emt 0:00:16]} 8. c3 {[%emt 0:01:37]} dxe5 {[%emt 0:04:12]} 9. dxe5 {[%emt 0:00:20]} Nc6 {[%emt 0:00:48]} 10. Bb5 {[%emt 0:00:37]} O-O {[%emt 0:00:25]} 11. Bxc6 {[%emt 0:00:22]} bxc6 {[%emt 0:00:01]} 12. h3 {[%emt 0:00:13]} Bh5 {[%emt 0:00:07]} 13. g4 {[%emt 0:00:38]} Bg6 {[%emt 0:00:04]} 14. Nd4 {[%emt 0:00:13]} Qd7 {[%emt 0:00:20]} 15. f4 {[%emt 0:01:06]} Bh4+ {[%emt 0:00:23]} 16. Kd2 {[%emt 0:01:23]} Be4 {[%emt 0:00:16]} 17. Rh2 {[%emt 0:01:38]} Bg3 {[%emt 0:00:40]} 18. Re2 {[%emt 0:00:18]} Bxf4+ {[%emt 0:00:23]} 19. Ke1 {[%emt 0:00:51]} Bxe5 {[%emt 0:01:02]} 20. Qa4 {[%emt 0:02:03]} Bg3+ {[%emt 0:02:50]} 21. Kd2 {[%emt 0:00:44]} Qd6 {[%emt 0:00:50]} 22. Qxc6 {[%emt 0:02:18]} Qf4+ {[%emt 0:00:49]} 23. Re3 {[%emt 0:00:50]} Qf1 {[%emt 0:05:23]} 24. Rxe4 {[%emt 0:03:24]} dxe4 {[%emt 0:00:29]} 25. Qxe4 {[%emt 0:00:03]} c5 {[%emt 0:01:02]} 26. Nf5 {[%emt 0:00:49]} Rad8+ {[%emt 0:01:48]} 27. Ke3 Rfe8 28. Ne7+ Rxe7 29. Qxe7 Qe1+ 0-1

[Event "Najdorf Memorial-B 2022"]
[Site "Warsaw"]
[Date "2022.07.09"]
[Round "1.12"]
[White "Szewczak, Andrzej"]
[Black "Mielcuch, Karol"]
[Result "1-0"]
[ECO "A00"]
[WhiteElo "1694"]
[BlackElo "1274"]
[Annotator "NA RC"]
[PlyCount "75"]
[EventDate "2022.07.09"]
[EventType "swiss"]
[EventCountry "POL"]
[SourceTitle "playchess.com"]
[Source "ChessBase"]
[SourceQuality "1"]
[TimeControl "40/5400+30:1800+30"]

1. b4 {[%emt 0:00:01]} d5 {[%emt 0:00:31]} 2. Bb2 {[%emt 0:00:06]} Nf6 {[%emt 0:00:12]} 3. e3 {[%emt 0:00:06]} e6 {[%emt 0:00:24]} 4. b5 {[%emt 0:00:03]} Bd6 {[%emt 0:01:38]} 5. f4 {[%emt 0:01:50]} O-O {[%emt 0:02:42]} 6. Nf3 {[%emt 0:00:41]} Nbd7 {[%emt 0:02:14]} 7. Be2 {[%emt 0:00:14]} Re8 {[%emt 0:02:19]} 8. O-O {[%emt 0:00:11]} e5 {[%emt 0:02:25]} 9. fxe5 {[%emt 0:00:06]} Nxe5 {[%emt 0:00:31]} 10. Nxe5 {[%emt 0:00:01]} Bxe5 {[%emt 0:00:16]} 11. Bxe5 {[%emt 0:00:01]} Rxe5 {[%emt 0:00:10]} 12. Rf4 {[%emt 0:01:37]} Rg5 {[%emt 0:11:54]} 13. Nc3 {[%emt 0:00:41]} Qd7 {[%emt 0:14:31]} 14. Rh4 {[%emt 0:03:05]} Qd6 {[%emt 0:13:37]} 15. Rb1 {[%emt 0:01:21]} Ne4 {[%emt 0:11:54]} 16. Rxe4 {[%emt 0:09:34]} dxe4 {[%emt 0:04:33]} 17. Nxe4 {[%emt 0:00:39]} Qg6 {[%emt 0:00:50]} 18. Nxg5 {[%emt 0:00:13]} Qxg5 {[%emt 0:00:11]} 19. Bf3 {[%emt 0:03:42]} g6 {[%emt 0:07:41]} 20. Rb4 {[%emt 0:01:34]} h5 {[%emt 0:02:48]} 21. a4 {[%emt 0:00:25]} Qc5 {[%emt 0:06:03]} 22. c3 {[%emt 0:00:01]} c6 23. bxc6 {[%emt 0:00:41]} bxc6 {[%emt 0:03:01]} 24. Qf1 {[%emt 0:00:31]} Be6 {[%emt 0:02:33]} 25. Qd3 {[%emt 0:04:13]} a5 {[%emt 0:02:13]} 26. Rd4 {[%emt 0:01:14]} Qe7 {[%emt 0:05:12]} 27. Bxc6 {[%emt 0:00:18]} Rb8 {[%emt 0:01:11]} 28. Bb5 {[%emt 0:00:02]} Bf5 {[%emt 0:00:39]} 29. Qf1 {[%emt 0:00:37]} Kh7 {[%emt 0:02:11]} 30. Qf4 {[%emt 0:00:22]} Rc8 {[%emt 0:00:35]} 31. h4 {[%emt 0:00:10]} Qa3 {[%emt 0:00:26]} 32. Bd7 {[%emt 0:01:19]} Qc1+ {[%emt 0:00:33]} 33. Kh2 {[%emt 0:00:08]} Bxd7 {[%emt 0:00:00]} 34. Rxd7 {[%emt 0:00:00]} Rf8 35. Rxf7+ Rxf7 36. Qxf7+ Kh6 37. Qg8 g5 38. hxg5# 1-0

[Event "Najdorf Memorial-B 2022"]
[Site "Warsaw"]
[Date "2022.07.09"]
[Round "1.13"]
[White "Malicka, Magdalena"]
[Black "Przybylski, Jan"]
[Result "0-1"]
[ECO "B80"]
[WhiteElo "1271"]
[BlackElo "1685"]
[Annotator "NA RC"]
[PlyCount "94"]
[EventDate "2022.07.09"]
[EventType "swiss"]
[EventCountry "POL"]
[SourceTitle "playchess.com"]
[Source "ChessBase"]
[SourceQuality "1"]
[TimeControl "40/5400+30:1800+30"]

1. e4 c5 2. Nf3 e6 3. d4 cxd4 4. Nxd4 Nf6 5. Nc3 d6 6. Be3 Be7 7. Be2 O-O 8. O-O a6 9. a4 Qc7 10. Qd2 b6 11. h3 Bb7 12. Bf3 Nbd7 13. Bg5 Ne5 14. Rfe1 Nc4 15. Qc1 Rac8 16. Rb1 Rfd8 17. g4 d5 18. exd5 Nxd5 19. Nxd5 Bxd5 20. Bxe7 Qxe7 21. Bxd5 Rxd5 22. Nf5 Qc5 23. b4 Qc7 24. Ne3 Re5 25. Nxc4 Rxe1+ 26. Qxe1 Qxc4 27. Qf1 Qxc2 28. Qd1 g6 29. a5 Qxd1+ 30. Rxd1 bxa5 31. bxa5 Rc5 32. Ra1 Kf8 33. Kf1 Rc2 34. Kg2 Ke7 35. g5 Rc5 36. h4 e5 37. Ra4 Kd6 38. Kf3 Kd5 39. Ke3 Rc3+ 40. Kd2 Rc4 41. Rxc4 Kxc4 42. Ke3 Kd5 43. Kd3 e4+ 44. Ke3 Ke5 45. f3 exf3 46. Kxf3 Kf5 47. Ke3 Kg4 0-1

[Event "Najdorf Memorial-B 2022"]
[Site "Warsaw"]
[Date "2022.07.09"]
[Round "1.14"]
[White "Nocek, Dominik"]
[Black "Sikorski, Jan"]
[Result "1-0"]
[ECO "B32"]
[WhiteElo "1682"]
[BlackElo "1266"]
[Annotator "NA RC"]
[PlyCount "95"]
[EventDate "2022.07.09"]
[EventType "swiss"]
[EventCountry "POL"]
[SourceTitle "playchess.com"]
[Source "ChessBase"]
[SourceQuality "1"]
[TimeControl "40/5400+30:1800+30"]

1. e4 c5 2. Nf3 Nc6 3. d4 cxd4 4. Nxd4 e5 5. Nb5 Nf6 6. N1c3 d6 7. Bg5 Be7 8. Bxf6 Bxf6 9. Nxd6+ Kf8 10. Bc4 Be6 11. Bxe6 fxe6 12. O-O Nd4 13. Nc4 Ke7 14. Ne2 Rc8 15. Qd3 Nxc2 16. Qxc2 b5 17. Qb3 bxc4 18. Qa3+ Qd6 19. Qxa7+ Rc7 20. Qa5 Rb8 21. Rfd1 Qb6 22. Qxb6 Rxb6 23. Rd2 Rcb7 24. Rb1 Ke8 25. Nc3 Be7 26. Rc2 Rb4 27. Nd1 Bc5 28. Rbc1 Rd7 29. a3 Ra4 30. Nc3 Ra8 31. Ne2 Rad8 32. g3 Rd2 33. Rxc4 Bxa3 34. bxa3 Rxe2 35. R1c2 Re1+ 36. Kg2 Ra1 37. Ra4 Kf7 38. Rc7+ Kf6 39. Raa7 Rg8 40. a4 Ra2 41. Ra5 Rf8 42. Raa7 g6 43. Rxh7 Kg5 44. h4+ Kg4 45. Rhf7 Rxf7 46. Rxf7 Rxa4 47. f3+ Kh5 48. Rh7# 1-0

[Event "Najdorf Memorial-B 2022"]
[Site "Warsaw"]
[Date "2022.07.09"]
[Round "1.16"]
[White "Warcaba, Jakub"]
[Black "Kozera, Konrad"]
[Result "1-0"]
[ECO "B90"]
[WhiteElo "1674"]
[BlackElo "1239"]
[Annotator "NA RC"]
[PlyCount "84"]
[EventDate "2022.07.09"]
[EventType "swiss"]
[EventCountry "POL"]
[SourceTitle "playchess.com"]
[Source "ChessBase"]
[SourceQuality "1"]
[TimeControl "40/5400+30:1800+30"]

1. e4 {[%emt 0:00:09]} c5 {[%emt 0:00:06]} 2. Nf3 {[%emt 0:00:08]} d6 {[%emt 0:00:06]} 3. d4 {[%emt 0:00:52]} cxd4 {[%emt 0:00:07]} 4. Nxd4 {[%emt 0:00:09]} Nf6 {[%emt 0:00:09]} 5. Nc3 {[%emt 0:00:06]} a6 {[%emt 0:00:10]} 6. h3 {[%emt 0:00:55]} e5 {[%emt 0:01:56]} 7. Nde2 {[%emt 0:00:01]} Be6 {[%emt 0:03:12]} 8. g4 {[%emt 0:00:11]} Be7 {[%emt 0:05:03]} 9. Bg2 {[%emt 0:01:31]} Nc6 {[%emt 0:03:40]} 10. Be3 {[%emt 0:06:37]} b5 {[%emt 0:08:49]} 11. g5 {[%emt 0:02:54]} Nd7 {[%emt 0:01:39]} 12. h4 {[%emt 0:06:10]} Nb6 {[%emt 0:10:36]} 13. b3 {[%emt 0:01:10]} b4 {[%emt 0:16:20]} 14. Nd5 {[%emt 0:01:14]} Bxd5 {[%emt 0:01:18]} 15. exd5 {[%emt 0:00:08]} Na7 {[%emt 0:00:45]} 16. Qd2 {[%emt 0:01:32]} a5 {[%emt 0:01:14]} 17. a3 {[%emt 0:03:08]} bxa3 {[%emt 0:06:07]} 18. Rxa3 {[%emt 0:01:08]} a4 {[%emt 0:01:33]} 19. Qb4 {[%emt 0:11:56]} Rb8 {[%emt 0:05:44]} 20. Bxb6 {[%emt 0:01:47]} Qxb6 {[%emt 0:04:06]} 21. Qxa4+ {[%emt 0:00:21]} Nb5 {[%emt 0:01:46]} 22. c4 {[%emt 0:00:49]} O-O {[%emt 0:01:18]} 23. Qxb5 {[%emt 0:02:04]} Qxb5 {[%emt 0:00:38]} 24. cxb5 {[%emt 0:00:07]} Rxb5 {[%emt 0:00:09]} 25. Nc3 {[%emt 0:05:24]} Rb4 {[%emt 0:02:10]} 26. Bf1 {[%emt 0:02:12]} f5 {[%emt 0:04:44]} 27. Bc4 {[%emt 0:00:27]} Rfb8 {[%emt 0:01:44]} 28. Ke2 {[%emt 0:03:17]} Bd8 {[%emt 0:03:32]} 29. Rha1 {[%emt 0:02:15]} Bc7 {[%emt 0:03:21]} 30. Ra8 {[%emt 0:00:43]} R4b7 {[%emt 0:01:13]} 31. Nb5 {[%emt 0:01:31]} Rxa8 {[%emt 0:04:36]} 32. Rxa8+ {[%emt 0:00:07]} Kf7 {[%emt 0:00:14]} 33. f4 {[%emt 0:04:51]} e4 {[%emt 0:01:08]} 34. Nxc7 {[%emt 0:03:05]} Rxc7 {[%emt 0:00:12]} 35. Ra6 {[%emt 0:00:57]} Ke7 {[%emt 0:00:35]} 36. Ke3 {[%emt 0:00:31]} g6 {[%emt 0:01:04]} 37. Kd4 {[%emt 0:01:02]} Rb7 {[%emt 0:02:57]} 38. Ra8 {[%emt 0:01:48]} Kf7 {[%emt 0:02:45]} 39. Rh8 {[%emt 0:00:20]} Kg7 {[%emt 0:00:34]} 40. Rd8 {[%emt 0:00:05]} Rb6 {[%emt 0:01:33]} 41. Rd7+ {[%emt 0:30:08]} Kg8 {[%emt 0:30:18]} 42. Ra7 {[%emt 0:00:00]} Rb8 {[%emt 0:00:00]} 1-0

[Event "Najdorf Memorial-B 2022"]
[Site "Warsaw"]
[Date "2022.07.09"]
[Round "1.17"]
[White "Kalinowski, Rafal"]
[Black "Kowalski, Witold"]
[Result "1/2-1/2"]
[ECO "D03"]
[WhiteElo "1232"]
[BlackElo "1673"]
[Annotator "NA RC"]
[PlyCount "61"]
[EventDate "2022.07.09"]
[EventType "swiss"]
[EventCountry "POL"]
[SourceTitle "playchess.com"]
[Source "ChessBase"]
[SourceQuality "1"]
[TimeControl "40/5400+30:1800+30"]

1. d4 {[%emt 0:00:02]} d5 {[%emt 0:00:09]} 2. Nf3 {[%emt 0:00:06]} Nf6 {[%emt 0:00:14]} 3. Bg5 {[%emt 0:00:08]} e6 {[%emt 0:01:07]} 4. e3 {[%emt 0:00:33]} Be7 {[%emt 0:00:11]} 5. Bd3 {[%emt 0:00:24]} Nbd7 {[%emt 0:02:11]} 6. Nbd2 {[%emt 0:01:14]} O-O {[%emt 0:00:37]} 7. O-O {[%emt 0:00:52]} b6 {[%emt 0:00:57]} 8. c4 {[%emt 0:05:26]} Bb7 {[%emt 0:00:21]} 9. Qc2 {[%emt 0:02:17]} h6 {[%emt 0:05:45]} 10. Bf4 {[%emt 0:04:03]} Rc8 {[%emt 0:01:13]} 11. Rac1 {[%emt 0:07:37]} c5 {[%emt 0:04:05]} 12. b3 {[%emt 0:05:41]} Re8 {[%emt 0:04:33]} 13. h3 {[%emt 0:08:23]} a6 {[%emt 0:10:40]} 14. Ne5 {[%emt 0:03:16]} cxd4 {[%emt 0:19:44]} 15. exd4 {[%emt 0:09:56]} Ba3 {[%emt 0:08:52]} 16. Rce1 {[%emt 0:05:24]} Bb4 {[%emt 0:02:23]} 17. Rc1 {[%emt 0:03:19]} Qe7 {[%emt 0:03:20]} 18. Ndf3 {[%emt 0:03:01]} Red8 {[%emt 0:04:07]} 19. Qe2 {[%emt 0:02:01]} a5 {[%emt 0:09:44]} 20. Rfd1 {[%emt 0:03:01]} Nxe5 {[%emt 0:09:02]} 21. Nxe5 {[%emt 0:04:16]} dxc4 {[%emt 0:01:48]} 22. bxc4 {[%emt 0:01:21]} Qe8 {[%emt 0:09:23]} 23. Ng4 {[%emt 0:01:52]} Nxg4 {[%emt 0:00:55]} 24. Qxg4 {[%emt 0:00:09]} f5 {[%emt 0:00:14]} 25. Qg3 {[%emt 0:00:32]} Kh8 {[%emt 0:00:30]} 26. Be5 {[%emt 0:00:16]} Qf7 {[%emt 0:00:26]} 27. Qe3 {[%emt 0:00:47]} Qg6 {[%emt 0:00:27]} 28. g3 {[%emt 0:00:24]} Bd6 {[%emt 0:00:49]} 29. Re1 {[%emt 0:00:51]} Rc6 {[%emt 0:00:38]} 30. Be2 {[%emt 0:02:36]} Rc7 {[%emt 0:00:23]} 31. Bf1 {[%emt 0:00:47]} 1/2-1/2

[Event "Najdorf Memorial-B 2022"]
[Site "Warsaw"]
[Date "2022.07.10"]
[Round "2.1"]
[White "Koziol, Pawel"]
[Black "Terkiewicz, Bruno"]
[Result "1/2-1/2"]
[ECO "A10"]
[WhiteElo "1771"]
[BlackElo "1473"]
[Annotator "NA RC"]
[PlyCount "66"]
[EventDate "2022.07.09"]
[EventType "swiss"]
[EventCountry "POL"]
[SourceTitle "playchess.com"]
[Source "ChessBase"]
[SourceQuality "1"]
[TimeControl "40/5400+30:1800+30"]

1. c4 {[%emt 0:00:04]} b6 {[%emt 0:00:01]} 2. Nc3 {[%emt 0:00:19]} Bb7 {[%emt 0:00:01]} 3. Nf3 {[%emt 0:00:15]} e6 {[%emt 0:00:06]} 4. g3 {[%emt 0:00:08]} f5 {[%emt 0:00:38]} 5. Bg2 {[%emt 0:00:07]} Nf6 {[%emt 0:00:03]} 6. O-O {[%emt 0:00:16]} Be7 {[%emt 0:00:10]} 7. d4 {[%emt 0:00:53]} O-O {[%emt 0:00:16]} 8. Re1 {[%emt 0:01:01]} Ne4 {[%emt 0:02:09]} 9. Qc2 {[%emt 0:00:19]} Nxc3 {[%emt 0:01:43]} 10. Qxc3 {[%emt 0:00:12]} Bf6 {[%emt 0:01:22]} 11. b4 {[%emt 0:00:56]} d6 {[%emt 0:12:05]} 12. Bb2 {[%emt 0:00:20]} Nd7 {[%emt 0:04:52]} 13. Qb3 {[%emt 0:00:50]} Qe7 {[%emt 0:05:55]} 14. Rac1 {[%emt 0:01:07]} Kh8 {[%emt 0:02:30]} 15. Nd2 {[%emt 0:02:04]} Bxg2 {[%emt 0:00:47]} 16. Kxg2 {[%emt 0:00:04]} e5 {[%emt 0:08:12]} 17. e3 {[%emt 0:01:13]} Rae8 {[%emt 0:13:43]} 18. dxe5 {[%emt 0:03:27]} Bxe5 {[%emt 0:03:48]} 19. Nf3 {[%emt 0:00:12]} Bxb2 {[%emt 0:00:43]} 20. Qxb2 {[%emt 0:00:05]} Ne5 {[%emt 0:01:08]} 21. Nxe5 {[%emt 0:00:35]} Qxe5 {[%emt 0:00:03]} 22. Qxe5 {[%emt 0:00:19]} Rxe5 {[%emt 0:00:04]} 23. Red1 {[%emt 0:00:13]} Kg8 {[%emt 0:04:58]} 24. b5 {[%emt 0:00:23]} a5 {[%emt 0:01:59]} 25. Kf3 {[%emt 0:00:37]} Rfe8 {[%emt 0:01:32]} 26. Rd4 {[%emt 0:00:36]} Rc5 {[%emt 0:02:29]} 27. Ke2 {[%emt 0:01:49]} Kf7 {[%emt 0:00:22]} 28. Kd3 {[%emt 0:00:18]} Kf6 {[%emt 0:00:16]} 29. f4 {[%emt 0:00:41]} Kg6 {[%emt 0:01:53]} 30. h3 {[%emt 0:00:33]} Kf6 {[%emt 0:02:17]} 31. g4 {[%emt 0:04:12]} g6 {[%emt 0:02:27]} 32. Rg1 {[%emt 0:01:43]} h6 {[%emt 0:02:33]} 33. a4 {[%emt 0:00:34]} Re7 1/2-1/2

[Event "Najdorf Memorial-B 2022"]
[Site "Warsaw"]
[Date "2022.07.10"]
[Round "2.2"]
[White "Jaroszuk, Marcin"]
[Black "Nawalaniec, Adam"]
[Result "1/2-1/2"]
[ECO "E68"]
[WhiteElo "1476"]
[BlackElo "1768"]
[Annotator "NA RC"]
[PlyCount "92"]
[EventDate "2022.07.09"]
[EventType "swiss"]
[EventCountry "POL"]
[SourceTitle "playchess.com"]
[Source "ChessBase"]
[SourceQuality "1"]
[TimeControl "40/5400+30:1800+30"]

1. Nf3 {[%emt 0:00:15]} g6 {[%emt 0:00:28]} 2. g3 {[%emt 0:00:16]} Bg7 {[%emt 0:00:11]} 3. d4 {[%emt 0:00:11]} Nf6 {[%emt 0:02:46]} 4. Bg2 {[%emt 0:00:25]} d6 {[%emt 0:01:27]} 5. O-O {[%emt 0:00:23]} O-O {[%emt 0:00:34]} 6. c4 {[%emt 0:00:13]} Nbd7 {[%emt 0:01:28]} 7. Nc3 {[%emt 0:00:15]} e5 {[%emt 0:07:33]} 8. e4 {[%emt 0:00:34]} Nb6 {[%emt 0:10:45]} 9. dxe5 {[%emt 0:09:07]} dxe5 {[%emt 0:00:46]} 10. b3 {[%emt 0:09:15]} Qe7 {[%emt 0:11:28]} 11. Qc2 {[%emt 0:02:33]} Rd8 {[%emt 0:05:11]} 12. Bb2 {[%emt 0:02:41]} Ne8 {[%emt 0:10:42]} 13. Rad1 {[%emt 0:04:06]} Be6 {[%emt 0:01:04]} 14. Bc1 {[%emt 0:11:46]} c6 {[%emt 0:07:08]} 15. Rxd8 {[%emt 0:16:07]} Rxd8 {[%emt 0:00:41]} 16. Rd1 {[%emt 0:00:45]} Nc7 {[%emt 0:04:43]} 17. Rxd8+ {[%emt 0:08:06]} Qxd8 {[%emt 0:00:02]} 18. Qd2 {[%emt 0:05:43]} Qe7 {[%emt 0:03:10]} 19. Bb2 {[%emt 0:01:19]} Na6 {[%emt 0:06:07]} 20. Qe3 {[%emt 0:06:37]} f6 {[%emt 0:04:11]} 21. Ne1 {[%emt 0:00:45]} Bf8 {[%emt 0:07:08]} 22. Nd3 {[%emt 0:00:57]} Qd8 {[%emt 0:03:09]} 23. Bf1 {[%emt 0:04:02]} Nb4 {[%emt 0:03:05]} 24. Nxb4 {[%emt 0:07:46]} Bxb4 {[%emt 0:00:01]} 25. a3 {[%emt 0:00:37]} Bxc3 {[%emt 0:01:51]} 26. Qxc3 {[%emt 0:00:27]} Qd1 {[%emt 0:01:12]} 27. Qd3 {[%emt 0:00:38]} Bg4 {[%emt 0:01:06]} 28. Qxd1 {[%emt 0:04:11]} Bxd1 {[%emt 0:00:01]} 29. b4 {[%emt 0:00:24]} Na4 {[%emt 0:01:52]} 30. Ba1 {[%emt 0:00:29]} Bc2 {[%emt 0:00:30]} 31. f3 {[%emt 0:00:51]} b6 {[%emt 0:00:17]} 32. Kf2 {[%emt 0:00:44]} Kf7 {[%emt 0:00:15]} 33. Ke3 {[%emt 0:00:13]} Ke6 {[%emt 0:00:29]} 34. Bd3 {[%emt 0:01:01]} Bb3 {[%emt 0:02:44]} 35. Kd2 {[%emt 0:02:07]} a6 {[%emt 0:01:09]} 36. Bc2 {[%emt 0:00:53]} Bxc2 {[%emt 0:00:36]} 37. Kxc2 {[%emt 0:00:05]} b5 {[%emt 0:01:28]} 38. c5 {[%emt 0:00:30]} f5 {[%emt 0:00:51]} 39. Kd3 {[%emt 0:00:55]} g5 {[%emt 0:00:16]} 40. g4 {[%emt 0:00:00]} fxg4 {[%emt 0:00:00]} 41. fxg4 {[%emt 0:04:11]} a5 {[%emt 0:02:29]} 42. Ke3 {[%emt 0:00:53]} Kf6 {[%emt 0:00:37]} 43. Kf3 {[%emt 0:00:21]} axb4 {[%emt 0:00:13]} 44. axb4 {[%emt 0:00:08]} Ke6 {[%emt 0:00:15]} 45. Ke3 {[%emt 0:00:08]} Kf6 {[%emt 0:00:09]} 46. Kf3 {[%emt 0:00:06]} Ke6 {[%emt 0:00:09]} 1/2-1/2

[Event "Najdorf Memorial-B 2022"]
[Site "Warsaw"]
[Date "2022.07.10"]
[Round "2.3"]
[White "Bubien, Antoni"]
[Black "Mazurek, Jerzy"]
[Result "1-0"]
[ECO "B31"]
[WhiteElo "1472"]
[BlackElo "1752"]
[Annotator "NA RC"]
[PlyCount "77"]
[EventDate "2022.07.09"]
[EventType "swiss"]
[EventCountry "POL"]
[SourceTitle "playchess.com"]
[Source "ChessBase"]
[SourceQuality "1"]
[TimeControl "40/5400+30:1800+30"]

1. e4 {[%emt 0:00:02]} c5 {[%emt 0:00:06]} 2. Nf3 {[%emt 0:00:05]} Nc6 {[%emt 0:00:06]} 3. Bb5 {[%emt 0:00:09]} g6 {[%emt 0:00:06]} 4. O-O {[%emt 0:00:09]} Bg7 {[%emt 0:00:05]} 5. c3 {[%emt 0:00:19]} e5 {[%emt 0:00:07]} 6. d4 {[%emt 0:00:49]} cxd4 {[%emt 0:02:59]} 7. cxd4 {[%emt 0:00:07]} exd4 {[%emt 0:00:49]} 8. Bf4 {[%emt 0:00:06]} a6 {[%emt 0:00:38]} 9. Ba4 {[%emt 0:01:35]} Nge7 {[%emt 0:00:22]} 10. Bd6 {[%emt 0:00:28]} h6 {[%emt 0:37:49]} 11. Na3 {[%emt 0:05:41]} O-O {[%emt 0:13:13]} 12. e5 {[%emt 0:14:07]} b5 {[%emt 0:09:32]} 13. Bb3 {[%emt 0:00:53]} Qb6 {[%emt 0:04:31]} 14. Nc2 {[%emt 0:01:20]} Re8 {[%emt 0:03:59]} 15. Ncxd4 {[%emt 0:01:54]} Nxd4 {[%emt 0:00:45]} 16. Nxd4 {[%emt 0:00:31]} Bb7 {[%emt 0:02:08]} 17. Qg4 {[%emt 0:05:35]} Bd5 {[%emt 0:07:17]} 18. Bc2 {[%emt 0:17:47]} h5 {[%emt 0:03:11]} 19. Qh4 {[%emt 0:01:46]} Nc8 {[%emt 0:02:25]} 20. Bb4 {[%emt 0:06:47]} Bxe5 {[%emt 0:02:11]} 21. Rad1 {[%emt 0:01:40]} a5 {[%emt 0:01:23]} 22. Be1 {[%emt 0:08:02]} Bc4 {[%emt 0:00:22]} 23. Nf3 {[%emt 0:00:44]} Bf6 {[%emt 0:01:21]} 24. Qg3 {[%emt 0:00:45]} Ne7 {[%emt 0:01:46]} 25. Rd6 {[%emt 0:00:29]} h4 {[%emt 0:01:11]} 26. Rxb6 {[%emt 0:01:57]} hxg3 {[%emt 0:00:06]} 27. Rxf6 {[%emt 0:00:09]} gxh2+ {[%emt 0:01:35]} 28. Nxh2 {[%emt 0:00:08]} Bxf1 {[%emt 0:00:08]} 29. Kxf1 {[%emt 0:00:12]} Nd5 {[%emt 0:02:08]} 30. Rd6 {[%emt 0:01:24]} Rac8 {[%emt 0:00:26]} 31. Bb3 {[%emt 0:01:16]} Rc1 {[%emt 0:00:15]} 32. Nf3 {[%emt 0:00:05]} Nf4 {[%emt 0:02:39]} 33. Rxd7 {[%emt 0:00:19]} Ne6 {[%emt 0:00:28]} 34. g3 {[%emt 0:01:27]} a4 {[%emt 0:00:06]} 35. Bd5 {[%emt 0:00:11]} Ng5 {[%emt 0:01:08]} 36. Nxg5 {[%emt 0:00:52]} Rexe1+ {[%emt 0:00:08]} 37. Kg2 {[%emt 0:00:11]} Rc2 {[%emt 0:00:40]} 38. Bxf7+ {[%emt 0:00:59]} Kh8 {[%emt 0:00:06]} 39. Bd5 {[%emt 0:00:35]} 1-0

[Event "Najdorf Memorial-B 2022"]
[Site "Warsaw"]
[Date "2022.07.10"]
[Round "2.4"]
[White "Mazur, Wojciech"]
[Black "Mazurkiewicz, Wojciech"]
[Result "1-0"]
[ECO "A52"]
[WhiteElo "1750"]
[BlackElo "1469"]
[Annotator "NA RC"]
[PlyCount "23"]
[EventDate "2022.07.09"]
[EventType "swiss"]
[EventCountry "POL"]
[SourceTitle "playchess.com"]
[Source "ChessBase"]
[SourceQuality "1"]
[TimeControl "40/5400+30:1800+30"]

1. d4 {[%emt 0:00:03]} Nf6 {[%emt 0:00:05]} 2. c4 {[%emt 0:00:07]} e5 {[%emt 0:00:07]} 3. dxe5 {[%emt 0:00:29]} Ng4 {[%emt 0:00:08]} 4. Bf4 {[%emt 0:01:10]} Bb4+ {[%emt 0:00:19]} 5. Nd2 {[%emt 0:00:08]} Nc6 {[%emt 0:00:09]} 6. Ngf3 {[%emt 0:00:05]} Qe7 {[%emt 0:00:21]} 7. e3 {[%emt 0:01:00]} Ngxe5 {[%emt 0:00:16]} 8. Be2 {[%emt 0:04:39]} Nxf3+ {[%emt 0:11:09]} 9. Bxf3 {[%emt 0:01:36]} Nd4 {[%emt 0:06:04]} 10. O-O {[%emt 0:03:46]} Nxf3+ {[%emt 0:04:54]} 11. Nxf3 {[%emt 0:00:17]} d6 {[%emt 0:00:50]} 12. Qa4+ {[%emt 0:04:11]} 1-0

[Event "Najdorf Memorial-B 2022"]
[Site "Warsaw"]
[Date "2022.07.10"]
[Round "2.5"]
[White "Matskevich, Varvara"]
[Black "Poniewierski, Piotr"]
[Result "1-0"]
[ECO "B10"]
[WhiteElo "1467"]
[BlackElo "1747"]
[Annotator "NA RC"]
[PlyCount "63"]
[EventDate "2022.07.09"]
[EventType "swiss"]
[EventCountry "POL"]
[SourceTitle "playchess.com"]
[Source "ChessBase"]
[SourceQuality "1"]
[TimeControl "40/5400+30:1800+30"]

1. e4 {[%emt 0:00:10]} c6 {[%emt 0:00:16]} 2. Nc3 {[%emt 0:00:28]} g6 {[%emt 0:00:29]} 3. d4 {[%emt 0:02:42]} d5 {[%emt 0:00:49]} 4. Be3 {[%emt 0:02:19]} Bg7 {[%emt 0:03:10]} 5. Nf3 {[%emt 0:03:01]} Bg4 {[%emt 0:01:26]} 6. Be2 {[%emt 0:02:13]} dxe4 {[%emt 0:05:03]} 7. Nxe4 {[%emt 0:00:54]} Nh6 {[%emt 0:01:55]} 8. O-O {[%emt 0:01:43]} O-O {[%emt 0:00:36]} 9. c3 {[%emt 0:03:30]} Nd7 {[%emt 0:03:26]} 10. h3 {[%emt 0:01:27]} Bxf3 {[%emt 0:00:18]} 11. Bxf3 {[%emt 0:00:16]} Nf5 {[%emt 0:02:04]} 12. Qb3 {[%emt 0:02:49]} Qc7 {[%emt 0:02:26]} 13. Rad1 {[%emt 0:01:54]} Rad8 {[%emt 0:01:59]} 14. Bg4 {[%emt 0:03:21]} Nxe3 {[%emt 0:07:03]} 15. fxe3 {[%emt 0:00:31]} e6 {[%emt 0:04:04]} 16. Ng5 {[%emt 0:06:27]} Qb6 {[%emt 0:06:25]} 17. Bxe6 {[%emt 0:02:00]} fxe6 {[%emt 0:05:16]} 18. Qxe6+ {[%emt 0:00:10]} Kh8 {[%emt 0:00:12]} 19. Nf7+ {[%emt 0:00:26]} Rxf7 {[%emt 0:00:30]} 20. Rxf7 {[%emt 0:00:17]} Nf8 {[%emt 0:02:52]} 21. Qe7 {[%emt 0:00:56]} Bh6 {[%emt 0:01:22]} 22. Rdf1 {[%emt 0:00:42]} Kg8 {[%emt 0:00:30]} 23. g4 {[%emt 0:01:24]} Qa5 {[%emt 0:00:44]} 24. h4 {[%emt 0:01:11]} g5 {[%emt 0:03:22]} 25. R1f5 {[%emt 0:00:39]} Qa4 {[%emt 0:03:38]} 26. Qxd8 {[%emt 0:02:43]} Qd1+ {[%emt 0:00:27]} 27. Kf2 {[%emt 0:00:08]} Qd2+ {[%emt 0:00:46]} 28. Kf3 {[%emt 0:00:20]} Qd1+ {[%emt 0:01:12]} 29. Ke4 {[%emt 0:00:28]} Qc2+ {[%emt 0:00:27]} 30. Ke5 {[%emt 0:00:17]} Qh2+ {[%emt 0:00:40]} 31. Kf6 {[%emt 0:00:16]} Qg3 {[%emt 0:04:23]} 32. Rxf8+ {[%emt 0:01:34]} 1-0